fUSD/lending_fUSD_20241015
["ID","MTS","AMOUNT","RATE_DAILY","PERIOD"]
[340271733,1728982243974,-151.56,0.00020788,2]
[340271735,1728982243984,-150.0,0.00020789,2]
[340271737,1728982243993,-157.81558195,0.00020789,2]
[340271739,1728982244003,-26397.065543,0.0002079,4]
[340271741,1728982244013,-19089.7211146,0.0002079,4]
[340271743,1728982244022,-166.346105,0.0002079,2]
[340271745,1728982244032,-151.0,0.0002079,2]
[340271747,1728982244041,-151.0,0.0002079,2]
[340271749,1728982244051,-193.878788,0.0002079,2]
[340271751,1728982244061,-193.878788,0.0002079,2]
[340271753,1728982244070,-193.878788,0.0002079,2]
[340271755,1728982244080,-193.878788,0.0002079,2]
[340271757,1728982244089,-151.0,0.0002079,2]
[340271759,1728982244099,-342.644642,0.0002079,2]
[340271761,1728982244108,-79191.1966289,0.0002079,4]
[340271763,1728982244118,-342.644642,0.0002079,2]
[340271765,1728982244128,-381794.422291,0.0002079,4]
[340271767,1728982244138,-6400.46949,0.0002079,2]
[340271769,1728982244147,-6400.46949,0.0002079,2]
[340271771,1728982244158,-252.533913,0.0002079,2]
[340271773,1728982244168,-252.533913,0.0002079,2]
[340271775,1728982244177,-151.0,0.0002079,2]
[340271777,1728982244187,-151.0,0.0002079,2]
[340271779,1728982244196,-151.0,0.0002079,2]
[340271781,1728982244206,-151.56,0.0002079,2]
[340271783,1728982244216,-151.56,0.0002079,2]
[340271785,1728982244225,-151.56,0.0002079,2]
[340271787,1728982244235,-151.56,0.0002079,2]
[340271789,1728982244244,-151.56,0.0002079,2]
[340271791,1728982244253,-151.56,0.0002079,2]
[340271793,1728982244263,-151.56,0.0002079,2]
[340271795,1728982244272,-151.56,0.0002079,2]
[340271797,1728982244283,-151.56,0.0002079,2]
[340271799,1728982244294,-151.56,0.0002079,2]
[340271801,1728982244303,-151.56,0.0002079,2]
[340271803,1728982244313,-5670.15399888,0.00020797,2]
[340271805,1728982244323,-7564.08437402,0.00020798,2]
[340271807,1728982244333,-342.644642,0.00020798,2]
[340271808,1728982244342,-342.644642,0.00020798,2]
[340271810,1728982244351,-6400.46949,0.00020798,2]
[340271812,1728982244363,-6400.46949,0.00020798,2]
[340271814,1728982244372,-1000.7187,0.00020799,2]
[340271816,1728982244381,-1000.0,0.00020799,2]
[340271818,1728982244391,-1000.0,0.00020799,2]
[340271820,1728982244401,-151.0,0.00020799,2]
[340271822,1728982244410,-193.878788,0.00020799,2]
[340271824,1728982244419,-193.878788,0.00020799,2]
[340271826,1728982244428,-151.0,0.00020799,2]
[340271828,1728982244438,-150.0,0.00020799,7]
[340271830,1728982244447,-150.0,0.00020799,7]
[340271832,1728982244456,-4924.11223384,0.000208,2]
[340271834,1728982244465,-37823.14,0.000208,3]
[340271836,1728982244475,-55788.79501356,0.000208,2]
[340271859,1728982245874,-34240.73082548,0.000208,2]
[340271860,1728982246043,-6609.3718268,0.000208,2]
[340271868,1728982266574,300.0,0.00027,60]
[340271869,1728982266756,326.0,0.00027,60]
[340271871,1728982662140,156.3,0.00010959,2]
[340271885,1728983432077,-150.71268515,0.00015056,2]
[340271886,1728983432086,-612.86503828,0.000151,2]
[340271887,1728983432102,-1088.13496172,0.000151,2]
[340271888,1728983432112,-800.0,0.00015623,2]
[340271889,1728983432121,-359.61,0.00017121,2]
[340271890,1728983432130,-250.0,0.00018911,2]
[340271891,1728983432139,-250.0,0.00018922,2]
[340271892,1728983432148,-3956.515501,0.00019089,2]
[340271893,1728983432334,-3332.164499,0.00019089,2]
[340271894,1728983432344,-152.0,0.00019102,3]
[340271895,1728983432354,-1500.0,0.00019138,2]
[340271896,1728983432363,-644.84,0.00019138,2]
[340271897,1728983432373,-821.0,0.00019138,2]
[340271898,1728983432382,-1237.54,0.00019138,2]
[340271899,1728983432392,-800.0,0.00019165,2]
[340271900,1728983432401,-150.0,0.00019215,2]
[340271901,1728983432411,-250.0,0.00019216,2]
[340271902,1728983432425,-150.99,0.00019216,2]
[340271903,1728983432435,-1103.57,0.00019216,2]
[340271904,1728983432444,-7176.14,0.00019216,2]
[340271905,1728983432453,-630.29,0.00019245,2]
[340271906,1728983432463,-349.86,0.0001933,2]
[340271907,1728983432472,-168.52,0.00019373,2]
[340271908,1728983432481,-13074.36,0.00019373,2]
[340271909,1728983432490,-499.99,0.00019373,2]
[340271910,1728983432499,-359.61,0.00019385,2]
[340271911,1728983432509,-150.99,0.00019435,2]
[340271912,1728983432518,-200.0,0.00019574,2]
[340271913,1728983432527,-160.96,0.00019735,2]
[340271914,1728983432536,-449.0,0.00020105,2]
[340271915,1728983432545,-1083.0,0.00020105,2]
[340271916,1728983432554,-1350.0499,0.00020378,2]
[340271917,1728983432563,-170.37544628,0.00020378,2]
[340271918,1728983432573,-7500.0,0.00020388,2]
[340271919,1728983432582,-161.60071545,0.00020388,2]
[340271920,1728983432591,-1471.44465921,0.00020468,2]
[340271921,1728983432600,-151.57,0.00020468,2]
[340271922,1728983432609,-151.06144271,0.00020473,2]
[340271923,1728983432618,-1789.11900529,0.00020475,2]
[340271924,1728983432626,-500.0,0.00020477,2]
[340271925,1728983432636,-424.55379889,0.00020477,2]
[340271926,1728983432645,-500.0,0.00020477,2]
[340271927,1728983432653,-406.92531838,0.00020477,2]
[340271928,1728983432662,-1924.79192393,0.00020478,4]
[340271929,1728983432679,-7835.99999991,0.00020478,4]
[340271930,1728983432691,-710.26876103,0.00020478,4]
[340271931,1728983432710,-1438.04137625,0.00020478,4]
[340271932,1728983432722,-509.43606644,0.00020478,4]
[340271934,1728983438169,-429.66,0.00019694,2]
[340271935,1728983438181,-200.0,0.00019694,2]
[340271936,1728983438190,-400.0,0.000197,7]
[340271937,1728983438200,-500.0,0.0002,2]
[340271938,1728983438209,-500.0,0.0002,2]
[340271939,1728983438219,-500.0,0.0002,2]
[340271940,1728983438228,-500.0,0.0002,2]
[340271941,1728983438237,-500.0,0.0002,2]
[340271942,1728983438247,-500.0,0.0002,2]
[340271943,1728983438257,-500.0,0.0002,2]
[340271944,1728983438267,-8590.53625176,0.00020478,4]
[340272081,1728983440128,-379.67021788,0.000198,7]
[340272082,1728983440241,-420.32978212,0.000198,7]
[340272083,1728983440251,-500.0,0.0002,2]
[340272084,1728983440260,-500.0,0.0002,2]
[340272085,1728983440395,-500.0,0.0002,2]
[340272086,1728983440416,-233747.51100268,0.00020478,4]
[340272087,1728983440426,-394195.773964,0.00020478,4]
[340272088,1728983440436,-1471.44465921,0.00020478,2]
[340272089,1728983440445,-151.57,0.00020478,2]
[340272090,1728983440456,-151.57,0.00020478,2]
[340272092,1728983440466,-151.57,0.00020478,2]
[340272093,1728983440475,-151.57,0.00020478,2]
[340272094,1728983440484,-151.57,0.00020478,2]
[340272095,1728983440493,-14312.95204232,0.00020485,2]
[340272096,1728983440503,-444.92061213,0.00020487,2]
[340272097,1728983440512,-150.0,0.00020487,2]
[340272098,1728983440522,-150.0,0.00020487,7]
[340272099,1728983440531,-207.85609159,0.00020487,2]
[340272100,1728983440541,-210431.36872451,0.00020488,5]
[340272101,1728983440551,-1441276.92813025,0.00020488,2]
[340272102,1728983440560,-239.85125,0.00020488,2]
[340272103,1728983440569,-239.85125,0.00020488,2]
[340272104,1728983440579,-151.0,0.00020488,2]
[340272105,1728983440588,-1500.0,0.000205,2]
[340272106,1728983440597,-157.124478,0.000205,4]
[340272107,1728983440607,-527.9892,0.00020566,2]
[340272108,1728983440616,-825.1967,0.00020566,2]
[340272109,1728983440625,-713.7868,0.00020576,2]
[340272110,1728983440635,-5002.8257,0.00020676,2]
[340272111,1728983440644,-151.0,0.00020676,2]
[340272112,1728983440654,-4296.9433,0.0002068,2]
[340272113,1728983440663,-150.0,0.00020682,2]
[340272114,1728983440672,-500.0,0.00020696,2]
[340272115,1728983440682,-500.0,0.00020696,2]
[340272116,1728983440693,-500.0,0.00020696,2]
[340272117,1728983440703,-500.0,0.00020696,2]
[340272118,1728983440713,-500.0,0.00020696,2]
[340272119,1728983440722,-403.173,0.00020696,2]
[340272120,1728983440732,-365.945,0.00020696,2]
[340272121,1728983440741,-150.0,0.00020699,2]
[340272122,1728983440751,-708.04909708,0.000207,2]
[340272123,1728983440760,-3309.5492,0.000207,2]
[340272124,1728983440771,-524.2403795,0.000207,2]
[340272125,1728983440781,-186.74307258,0.000207,2]
[340272126,1728983440790,-3791.56596646,0.000207,2]
[340272127,1728983440799,-150.0,0.00020727,2]
[340272128,1728983440808,-160.24679997,0.00020737,10]
[340272129,1728983440818,-1175.31599231,0.00020737,10]
[340272130,1728983440827,-150.0,0.00020743,2]
[340272131,1728983440836,-150.0,0.00020768,2]
[340272132,1728983440846,-150.0,0.00020769,2]
[340272133,1728983440855,-500.0,0.00020773,2]
[340272134,1728983440864,-412.73226918,0.00020773,2]
[340272135,1728983440873,-150.86517782,0.00020773,2]
[340272136,1728983440882,-320.20147887,0.00020773,2]
[340272137,1728983440891,-500.0,0.00020773,2]
[340272138,1728983440901,-215.09631747,0.00020773,2]
[340272139,1728983440911,-501.22946799,0.00020773,2]
[340272140,1728983440920,-500.0,0.00020773,2]
[340272141,1728983440929,-161.65,0.00020776,2]
[340272142,1728983440938,-150.0,0.00020782,2]
[340272143,1728983440948,-150.0,0.00020784,2]
[340272144,1728983440957,-150.0,0.00020785,2]
[340272145,1728983440966,-151.0,0.00020789,2]
[340272146,1728983440975,-151.0,0.00020789,2]
[340272147,1728983440984,-151.0,0.00020789,2]
[340272148,1728983440992,-162.110802,0.0002079,2]
[340272149,1728983441001,-1471.44465921,0.0002079,2]
[340272150,1728983441010,-151.57,0.0002079,2]
[340272151,1728983441019,-151.57,0.0002079,2]
[340272152,1728983441028,-151.57,0.0002079,2]
[340272153,1728983441037,-151.57,0.0002079,2]
[340272154,1728983441046,-151.57,0.0002079,2]
[340272155,1728983441056,-151.57,0.0002079,2]
[340272156,1728983441065,-356.6653537,0.00020794,2]
[340272157,1728983441075,-150.01,0.00020799,2]
[340272158,1728983441084,-567.85996232,0.00020799,2]
[340272159,1728983441094,-1000.0,0.00020799,2]
[340272160,1728983441103,-150.0,0.00020799,7]
[340272161,1728983441112,-150.0,0.00020799,7]
[340272162,1728983441122,-1908178.4361917,0.000208,2]
[340272163,1728983441131,-435.62,0.000208,2]
[340272164,1728983441140,-151.0,0.000208,2]
[340272165,1728983441149,-151.0,0.000208,2]
[340272166,1728983441159,-151.0,0.000208,2]
[340272167,1728983441168,-239.85125,0.000208,2]
[340272168,1728983441179,-239.85125,0.000208,2]
[340272169,1728983441189,-151.0,0.000208,2]
[340272170,1728983441199,-14495.0543246,0.00020805,2]
[340272171,1728983441209,-4233.5376601,0.00020805,2]
[340272172,1728983441219,-1513.9176275,0.00020805,2]
[340272173,1728983441229,-150.0,0.00020816,2]
[340272174,1728983441239,-150.0,0.00020828,2]
[340272175,1728983441248,-150.0,0.00020828,2]
[340272176,1728983441258,-150.0,0.00020828,2]
[340272177,1728983441268,-168.458535,0.00020837,2]
[340272178,1728983441278,-150.0,0.00020841,2]
[340272179,1728983441287,-150.0,0.0002088,2]
[340272180,1728983441297,-157.124478,0.000209,7]
[340272181,1728983441307,-3480.9087427,0.00020923,2]
[340272182,1728983441316,-1244.776716,0.00020923,2]
[340272183,1728983441325,-150.0,0.00020929,2]
[340272184,1728983441335,-801.0,0.00020936,2]
[340272185,1728983441344,-356.6653537,0.00020937,2]
[340272186,1728983441353,-11918.155778,0.00020937,2]
[340272187,1728983441363,-9341.2572314,0.00020948,2]
[340272188,1728983441373,-150.0,0.00020949,2]
[340272189,1728983441382,-356.6653537,0.00020951,2]
[340272190,1728983441391,-2728.2798254,0.00020951,2]
[340272191,1728983441401,-975.6358044,0.00020951,2]
[340272192,1728983441411,-500.0,0.00020973,2]
[340272193,1728983441421,-500.0,0.00020973,2]
[340272194,1728983441432,-158.45176908,0.00020973,2]
[340272195,1728983441442,-356.6653537,0.00020976,2]
[340272196,1728983441451,-356.6653537,0.00020976,2]
[340272197,1728983441461,-356.6653537,0.00020976,2]
[340272198,1728983441471,-6764.3586848,0.00020976,2]
[340272199,1728983441481,-4187.4601382,0.00020976,2]
[340272200,1728983441491,-1610.5615916,0.00020976,2]
[340272201,1728983441500,-1975.650908,0.00020976,2]
[340272202,1728983441510,-1223.0219907,0.00020976,2]
[340272203,1728983441520,-470.3930733,0.00020976,2]
[340272204,1728983441530,-239.85125,0.00020976,2]
[340272205,1728983441540,-239.85125,0.00020976,2]
[340272206,1728983441550,-706.4948928,0.00020976,2]
[340272207,1728983441559,-437.3539813,0.00020976,2]
[340272208,1728983441569,-168.2130697,0.00020976,2]
[340272209,1728983441578,-151.0,0.00020976,2]
[340272210,1728983441588,-68070.39626768,0.0002099,2]
[340272211,1728983441597,-151.0,0.0002099,2]
[340272212,1728983441607,-151.0,0.0002099,2]
[340272213,1728983441616,-151.0,0.0002099,2]
[340272214,1728983441626,-202.02713,0.0002099,2]
[340272215,1728983441635,-4480.328643,0.0002099,2]
[340272216,1728983441644,-202.02713,0.0002099,2]
[340272217,1728983441654,-4480.328643,0.0002099,2]
[340272218,1728983441663,-151.0,0.0002099,2]
[340272219,1728983441672,-208.0,0.00021,2]
[340272220,1728983441683,-150.0,0.00021,9]
[340272221,1728983441695,-172.212135,0.000215,9]
[340272222,1728983441705,-800.0,0.00021561,2]
[340272223,1728983441714,-152.0,0.000216,4]
[340272224,1728983441723,-170.79619443,0.000216,5]
[340272225,1728983441734,-359.61,0.00021648,2]
[340272226,1728983441743,-239.85125,0.00021842,2]
[340272227,1728983441753,-239.85125,0.00021842,2]
[340272228,1728983441762,-448.75,0.00021918,2]
[340272229,1728983441773,-151.0,0.00021918,2]
[340272230,1728983441783,-151.0,0.00021918,2]
[340272231,1728983441792,-801.0,0.00021983,2]
[340272232,1728983441801,-200.0,0.00022021,2]
[340272233,1728983441811,-162.23,0.00022137,30]
[340272234,1728983441820,-1006.10803958,0.00022142,2]
[340272235,1728983441829,-1000.0,0.00022142,2]
[340272236,1728983441839,-504.15676314,0.00022142,2]
[340272237,1728983441848,-11925.24080762,0.00022275,2]
[340272238,1728983441857,-502.02100005,0.00022342,2]
[340272239,1728983441867,-500.0,0.00022462,2]
[340272240,1728983441876,-500.0,0.00022462,2]
[340272241,1728983441885,-500.0,0.00022462,2]
[340272242,1728983441895,-500.0,0.00022462,2]
[340272243,1728983441904,-500.0,0.0002247,2]
[340272244,1728983441914,-500.0,0.0002247,2]
[340272245,1728983441923,-500.0,0.0002247,2]
[340272246,1728983441933,-500.0,0.00022471,2]
[340272247,1728983441942,-500.0,0.00022479,2]
[340272248,1728983441951,-500.0,0.00022479,2]
[340272249,1728983441960,-500.0,0.00022479,2]
[340272250,1728983441970,-500.0,0.0002248,2]
[340272251,1728983441980,-500.0,0.00022488,2]
[340272252,1728983441989,-500.0,0.00022488,2]
[340272253,1728983441999,-500.0,0.00022488,2]
[340272254,1728983442008,-500.0,0.00022488,2]
[340272255,1728983442017,-500.0,0.00022488,2]
[340272256,1728983442027,-500.0,0.00022489,2]
[340272257,1728983442037,-500.0,0.00022489,2]
[340272258,1728983442046,-216.17,0.000225,7]
[340272259,1728983442055,-524.24037949,0.000228,2]
[340272260,1728983442064,-3791.56596646,0.000228,2]
[340272261,1728983442073,-509.16,0.00023,5]
[340272262,1728983442083,-500.0,0.00023,5]
[340272263,1728983442092,-500.0,0.00023,5]
[340272264,1728983442101,-284.11320698,0.00023,2]
[340272265,1728983442110,-435.62,0.00023,14]
[340272266,1728983442119,-302.68,0.00023,2]
[340272267,1728983442128,-999.1,0.00023,2]
[340272268,1728983442137,-157.124478,0.00023,2]
[340272269,1728983442147,-801.0,0.00023082,2]
[340272270,1728983442156,-359.61,0.00023912,2]
[340272271,1728983442165,-999.1,0.00023925,2]
[340272272,1728983442175,-800.0,0.00023956,2]
[340272273,1728983442184,-1500.0,0.00024146,2]
[340272274,1728983442193,-801.0,0.00024236,2]
[340272275,1728983442203,-200.0,0.00024467,2]
[340272276,1728983442212,-267.25533,0.000245,6]
[340272277,1728983442221,-151.57,0.00024647,2]
[340272278,1728983442230,-162.76466851,0.00024656,20]
[340272279,1728983442240,-2105.1417252,0.00024656,10]
[340272280,1728983442250,-200.11839796,0.00024656,10]
[340272281,1728983442259,-150.0,0.00024656,7]
[340272282,1728983442268,-150.0,0.00024656,7]
[340272283,1728983442277,-450.617499,0.00024657,7]
[340272284,1728983442286,-503.81596559,0.00024657,7]
[340272285,1728983442295,-500.0,0.00024657,5]
[340272286,1728983442305,-500.0,0.00024657,5]
[340272287,1728983442314,-500.0,0.00024657,5]
[340272288,1728983442323,-500.0,0.00024657,5]
[340272289,1728983442332,-500.0,0.00024657,5]
[340272290,1728983442341,-500.0,0.00024657,5]
[340272291,1728983442350,-500.0,0.00024657,7]
[340272292,1728983442359,-500.0,0.00024657,7]
[340272293,1728983442368,-500.0,0.00024657,7]
[340272294,1728983442378,-500.0,0.00024657,7]
[340272295,1728983442387,-500.0,0.00024657,7]
[340272296,1728983442396,-500.0,0.00024657,7]
[340272297,1728983442405,-500.0,0.00024657,7]
[340272298,1728983442415,-525.4377992,0.00024657,7]
[340272299,1728983442424,-513.00718179,0.00024657,7]
[340272300,1728983442435,-631.29162812,0.00024657,7]
[340272301,1728983442444,-500.0,0.00024657,7]
[340272302,1728983442454,-500.0,0.00024657,7]
[340272303,1728983442463,-500.0,0.00024657,7]
[340272304,1728983442473,-639.73934156,0.00024657,7]
[340272305,1728983442482,-532.02324562,0.00024657,7]
[340272306,1728983442492,-170.77303876,0.00024657,7]
[340272307,1728983442501,-1193.24,0.00024657,7]
[340272308,1728983442511,-1193.24,0.00024657,7]
[340272309,1728983442520,-1193.24,0.00024657,7]
[340272310,1728983442530,-1193.24,0.00024657,7]
[340272311,1728983442539,-1193.24,0.00024657,7]
[340272312,1728983442549,-1193.24,0.00024657,7]
[340272313,1728983442558,-1193.24,0.00024657,7]
[340272314,1728983442567,-1193.24,0.00024657,7]
[340272315,1728983442576,-1193.24,0.00024657,7]
[340272316,1728983442586,-1193.24,0.00024657,7]
[340272317,1728983442595,-1193.24,0.00024657,7]
[340272318,1728983442604,-1193.24,0.00024657,7]
[340272319,1728983442614,-1193.24,0.00024657,7]
[340272320,1728983442623,-1193.24,0.00024657,7]
[340272321,1728983442633,-1193.24,0.00024657,7]
[340272322,1728983442642,-1193.24,0.00024657,7]
[340272323,1728983442652,-1193.24,0.00024657,7]
[340272324,1728983442662,-162.27022631,0.00024657,7]
[340272325,1728983442671,-236.41388467,0.00024657,7]
[340272326,1728983442681,-500.0,0.00024657,7]
[340272327,1728983442693,-500.0,0.00024657,7]
[340272328,1728983442703,-528.74355292,0.00024657,7]
[340272329,1728983442712,-500.0,0.00024657,7]
[340272330,1728983442723,-411.38145876,0.00024657,7]
[340272332,1728983442733,-500.0,0.00024657,7]
[340272334,1728983442743,-500.0,0.00024657,7]
[340272336,1728983442752,-500.0,0.00024657,7]
[340272337,1728983442761,-200.72263202,0.00024657,7]
[340272338,1728983442773,-526.4358793,0.00024657,7]
[340272339,1728983442782,-567.4282176,0.00024657,7]
[340272340,1728983442791,-499.90652013,0.00024657,7]
[340272341,1728983442800,-500.0,0.00024657,7]
[340272342,1728983442809,-500.0,0.00024657,7]
[340272343,1728983442819,-500.0,0.00024657,7]
[340272344,1728983442828,-540.03280577,0.00024657,7]
[340272345,1728983442941,-452.77155449,0.00024657,7]
[340272346,1728983442951,-584.58,0.00024657,7]
[340272347,1728983442961,-584.58,0.00024657,7]
[340272348,1728983442971,-584.58,0.00024657,7]
[340272349,1728983442980,-584.58,0.00024657,7]
[340272350,1728983442990,-584.58,0.00024657,7]
[340272351,1728983443000,-584.58,0.00024657,7]
[340272352,1728983443010,-584.58,0.00024657,7]
[340272353,1728983443020,-584.58,0.00024657,7]
[340272354,1728983443029,-525.90817948,0.00024657,7]
[340272355,1728983443039,-584.58,0.00024657,7]
[340272356,1728983443048,-584.58,0.00024657,7]
[340272357,1728983443058,-584.58,0.00024657,7]
[340272358,1728983443067,-584.58,0.00024657,7]
[340272359,1728983443076,-584.58,0.00024657,7]
[340272360,1728983443086,-584.58,0.00024657,7]
[340272361,1728983443095,-584.58,0.00024657,7]
[340272362,1728983443105,-584.58,0.00024657,7]
[340272363,1728983443114,-584.58,0.00024657,7]
[340272364,1728983443124,-582.40788811,0.00024657,7]
[340272365,1728983443133,-500.0,0.00024657,7]
[340272366,1728983443142,-562.07208994,0.00024657,7]
[340272367,1728983443151,-519.61192642,0.00024657,7]
[340272368,1728983443161,-500.0,0.00024657,7]
[340272369,1728983443170,-561.33219411,0.00024657,7]
[340272370,1728983443180,-500.0,0.00024657,7]
[340272371,1728983443189,-522.2770604,0.00024657,7]
[340272372,1728983443199,-500.0,0.00024657,7]
[340272373,1728983443208,-189.73308094,0.00024657,7]
[340272375,1728983443217,-193.66855957,0.00024657,7]
[340272376,1728983443227,-544.42246347,0.00024657,7]
[340272377,1728983443237,-500.0,0.00024657,7]
[340272378,1728983443247,-500.0,0.00024657,7]
[340272379,1728983443256,-500.0,0.00024657,7]
[340272380,1728983443266,-500.0,0.00024657,7]
[340272381,1728983443275,-500.0,0.00024657,7]
[340272382,1728983443285,-500.0,0.00024657,7]
[340272383,1728983443294,-500.0,0.00024657,7]
[340272384,1728983443304,-500.0,0.00024657,7]
[340272385,1728983443313,-500.0,0.00024657,7]
[340272386,1728983443323,-500.0,0.00024657,7]
[340272387,1728983443332,-500.0,0.00024657,7]
[340272388,1728983443342,-500.0,0.00024657,7]
[340272389,1728983443352,-500.0,0.00024657,7]
[340272390,1728983443361,-500.0,0.00024657,7]
[340272391,1728983443371,-500.0,0.00024657,7]
[340272392,1728983443381,-500.0,0.00024657,7]
[340272393,1728983443390,-500.0,0.00024657,7]
[340272394,1728983443400,-500.0,0.00024657,7]
[340272395,1728983443410,-500.0,0.00024657,7]
[340272396,1728983443419,-500.26993762,0.00024657,7]
[340272397,1728983443429,-500.0,0.00024657,7]
[340272398,1728983443438,-514.29160143,0.00024657,7]
[340272399,1728983443448,-500.0,0.00024657,7]
[340272400,1728983443458,-515.19045641,0.00024657,7]
[340272401,1728983443467,-500.0,0.00024657,7]
[340272402,1728983443477,-500.0,0.00024657,7]
[340272403,1728983443487,-516.0737738,0.00024657,7]
[340272404,1728983443496,-151.54500431,0.00024657,7]
[340272405,1728983443506,-521.4335446,0.00024657,7]
[340272406,1728983443515,-511.52750712,0.00024657,7]
[340272407,1728983443525,-526.00261023,0.00024657,7]
[340272408,1728983443534,-510.43984278,0.00024657,7]
[340272409,1728983443544,-215.77378336,0.00024657,7]
[340272410,1728983443553,-504.65104128,0.00024657,2]
[340272411,1728983443562,-333.40047693,0.00024657,7]
[340272412,1728983443572,-194.78127767,0.00024657,7]
[340272413,1728983443581,-563.17878543,0.00024657,7]
[340272414,1728983443590,-521.439752,0.00024657,7]
[340272415,1728983443600,-500.0,0.00024657,7]
[340272416,1728983443609,-545.45655931,0.00024657,7]
[340272417,1728983443619,-549.21339414,0.00024657,7]
[340272418,1728983443628,-511.14744977,0.00024657,7]
[340272419,1728983443637,-507.902755,0.00024657,7]
[340272420,1728983443647,-500.0,0.00024657,7]
[340272421,1728983443656,-500.0,0.00024657,7]
[340272422,1728983443665,-500.0,0.00024657,7]
[340272423,1728983443674,-521.44660945,0.00024657,7]
[340272424,1728983443685,-500.0,0.00024657,7]
[340272425,1728983443700,-500.0,0.00024657,7]
[340272426,1728983443709,-513.59758188,0.00024657,7]
[340272427,1728983443718,-508.35112141,0.00024657,7]
[340272428,1728983443727,-500.0,0.00024657,7]
[340272429,1728983443738,-500.0,0.00024657,7]
[340272430,1728983443747,-500.0,0.00024657,7]
[340272431,1728983443757,-500.0,0.00024657,7]
[340272432,1728983443767,-500.0,0.00024657,7]
[340272433,1728983443777,-500.0,0.00024657,7]
[340272434,1728983443786,-500.0,0.00024657,7]
[340272435,1728983443795,-536.35369032,0.00024657,7]
[340272436,1728983443804,-560.39187562,0.00024657,7]
[340272437,1728983443814,-500.0,0.00024657,7]
[340272438,1728983443823,-500.0,0.00024657,7]
[340272439,1728983443833,-500.0,0.00024657,7]
[340272440,1728983443842,-500.0,0.00024657,7]
[340272441,1728983443851,-160.63956484,0.00024657,7]
[340272442,1728983443861,-500.0,0.00024657,7]
[340272443,1728983443870,-552.00445158,0.00024657,7]
[340272444,1728983443879,-500.0,0.00024657,7]
[340272445,1728983443888,-571.02971293,0.00024657,7]
[340272446,1728983443898,-500.0,0.00024657,7]
[340272447,1728983443907,-223.98528472,0.00024657,7]
[340272448,1728983443916,-500.0,0.00024657,7]
[340272449,1728983443926,-411.66349312,0.00024657,7]
[340272450,1728983443936,-512.69978607,0.00024657,7]
[340272451,1728983443945,-528.50964418,0.00024657,7]
[340272452,1728983443954,-2127.230016,0.00024657,7]
[340272453,1728983443964,-500.0,0.00024657,7]
[340272454,1728983443973,-500.0,0.00024657,7]
[340272455,1728983443982,-402.79288514,0.00024657,7]
[340272456,1728983443992,-511.13630496,0.00024657,7]
[340272457,1728983444002,-532.22390943,0.00024657,7]
[340272458,1728983444011,-180.3575962,0.00024657,7]
[340272459,1728983444020,-525.01461929,0.00024657,7]
[340272460,1728983444029,-500.0,0.00024657,7]
[340272461,1728983444039,-500.0,0.00024657,7]
[340272462,1728983444048,-517.39342184,0.00024657,7]
[340272463,1728983444057,-500.0,0.00024657,7]
[340272464,1728983444066,-500.0,0.00024657,7]
[340272465,1728983444077,-500.0,0.00024657,7]
[340272466,1728983444086,-179.11705188,0.00024657,7]
[340272467,1728983444096,-219.6680986,0.00024657,7]
[340272468,1728983444105,-557.23582506,0.00024657,7]